[Event "WSTCC-50 2020"]
[Site "Prague"]
[Date "2020.03.09"]
[Round "4.24"]
[White "Barron, Michael"]
[Black "Vanek, Petr"]
[Result "1-0"]
[ECO "C06"]
[WhiteElo "2075"]
[BlackElo "2076"]
[Annotator "ChessBase"]
[PlyCount "107"]
[EventDate "2020.03.06"]
[EventType "team-tourn"]
[EventCountry "CZE"]
[SourceTitle "playchess.com"]
[Source "ChessBase"]
[SourceQuality "1"]
[TimeControl "40/5400+30:1800+30"]

1. e4 {[%emt 0:00:00]} e6 {[%emt 0:00:00]} 2. d4 {[%emt 0:00:00]} d5 {[%emt 0:00:00]} 3. Nd2 {[%emt 0:00:00]} Nf6 4. e5 {[%emt 0:00:00]} Nfd7 {[%emt 0:00:42]} 5. Bd3 {[%emt 0:00:00]} c5 {[%emt 0:00:16]} 6. c3 {[%emt 0:00:00]} Nc6 {[%emt 0:00:11]} 7. Ne2 cxd4 {[%emt 0:00:53]} 8. cxd4 {[%emt 0:00:00]} f6 {[%emt 0:00:10]} 9. exf6 {[%emt 0:00:20]} Nxf6 {[%emt 0:00:11]} 10. O-O {[%emt 0:00:31]} Bd6 {[%emt 0:00:22]} 11. Nf3 {[%emt 0:00:00]} O-O {[%emt 0:00:25]} 12. Bg5 {[%emt 0:00:00]} Qc7 {[%emt 0:02:56]} 13. Bh4 {[%emt 0:00:00]} Bd7 {[%emt 0:17:12]} 14. Bg3 {[%emt 0:00:34]} Rae8 15. Rc1 {[%emt 0:00:22]} Bxg3 {[%emt 0:04:06]} 16. hxg3 {[%emt 0:04:33]} Qd6 {[%emt 0:05:35]} 17. Qb3 {[%emt 0:04:31]} Qb4 18. Rc3 {[%emt 0:00:02]} Qxb3 {[%emt 0:10:24]} 19. Rxb3 b6 {[%emt 0:01:55]} 20. Rc1 {[%emt 0:01:02]} e5 {[%emt 0:06:28]} 21. dxe5 {[%emt 0:06:19]} Nxe5 {[%emt 0:00:45]} 22. Nxe5 {[%emt 0:01:15]} Rxe5 {[%emt 0:00:05]} 23. f3 {[%emt 0:00:18]} Rfe8 {[%emt 0:04:28]} 24. Kf2 {[%emt 0:02:31]} Bf5 {[%emt 0:06:50]} 25. Nd4 {[%emt 0:00:42]} Bxd3 {[%emt 0:00:13]} 26. Rxd3 {[%emt 0:00:07]} Kf7 {[%emt 0:02:14]} 27. Rd2 {[%emt 0:00:39]} R5e7 {[%emt 0:01:37]} 28. g4 {[%emt 0:00:22]} h6 {[%emt 0:01:05]} 29. Rdc2 {[%emt 0:01:12]} Rd7 {[%emt 0:01:48]} 30. Rc7 {[%emt 0:00:51]} Rxc7 {[%emt 0:05:07]} 31. Rxc7+ {[%emt 0:00:14]} Re7 {[%emt 0:00:13]} 32. Rxe7+ {[%emt 0:04:23]} Kxe7 {[%emt 0:02:20]} 33. Nc6+ {[%emt 0:00:02]} Kd6 {[%emt 0:00:29]} 34. Nxa7 {[%emt 0:00:02]} Kc5 {[%emt 0:00:20]} 35. Nc8 {[%emt 0:00:03]} d4 {[%emt 0:00:31]} 36. Ne7 {[%emt 0:00:15]} Kc4 {[%emt 0:01:00]} 37. Ke2 {[%emt 0:00:06]} g5 {[%emt 0:01:22]} 38. Kd2 {[%emt 0:00:58]} b5 {[%emt 0:01:55]} 39. Kc2 {[%emt 0:03:46]} h5 {[%emt 0:01:45]} 40. Ng6 {[%emt 0:00:00]} hxg4 {[%emt 0:00:00]} 41. Ne5+ {[%emt 0:04:18]} Kd5 {[%emt 0:07:08]} 42. Nxg4 {[%emt 0:01:50]} Nd7 {[%emt 0:01:33]} 43. b3 {[%emt 0:01:11]} b4 {[%emt 0:00:33]} 44. Kd2 {[%emt 0:00:11]} Nc5 {[%emt 0:00:55]} 45. Nf2 {[%emt 0:00:38]} Ke6 {[%emt 0:07:50]} 46. Ne4 {[%emt 0:00:31]} Nxe4+ {[%emt 0:03:17]} 47. fxe4 {[%emt 0:00:02]} Kd6 {[%emt 0:00:26]} 48. Kd3 {[%emt 0:00:34]} Ke5 {[%emt 0:00:09]} 49. g4 {[%emt 0:00:03]} Kf4 {[%emt 0:00:12]} 50. Kxd4 {[%emt 0:00:03]} Kxg4 {[%emt 0:00:05]} 51. e5 {[%emt 0:00:12]} Kf5 {[%emt 0:00:42]} 52. Kd5 {[%emt 0:00:02]} g4 {[%emt 0:00:19]} 53. e6 {[%emt 0:00:01]} Kf6 {[%emt 0:01:12]} 54. Kd6 {[%emt 0:00:03]} 1-0

[Event "WSTCC-50 2020"]
[Site "Prague"]
[Date "2020.03.09"]
[Round "4.26"]
[White "Sandten, Ulrich"]
[Black "Grabuzova, Tatiana"]
[Result "1/2-1/2"]
[ECO "A40"]
[WhiteElo "2100"]
[BlackElo "2272"]
[Annotator "ChessBase"]
[PlyCount "92"]
[EventDate "2020.03.06"]
[EventType "team-tourn"]
[EventCountry "CZE"]
[SourceTitle "playchess.com"]
[Source "ChessBase"]
[SourceQuality "1"]
[TimeControl "40/5400+30:1800+30"]

1. d4 {[%emt 0:00:00]} e6 {[%emt 0:00:00]} 2. Nf3 {[%emt 0:00:01]} f5 {[%emt 0:00:48]} 3. e3 {[%emt 0:00:20]} Nf6 {[%emt 0:00:39]} 4. Be2 {[%emt 0:00:14]} b6 {[%emt 0:02:22]} 5. O-O {[%emt 0:00:51]} Bb7 {[%emt 0:00:04]} 6. c4 {[%emt 0:00:27]} Be7 {[%emt 0:00:12]} 7. Nc3 {[%emt 0:00:21]} O-O {[%emt 0:00:32]} 8. Rb1 {[%emt 0:04:12]} Ne4 {[%emt 0:03:18]} 9. Qc2 {[%emt 0:00:45]} Nxc3 {[%emt 0:17:05]} 10. Qxc3 {[%emt 0:00:13]} Be4 {[%emt 0:00:03]} 11. Ra1 {[%emt 0:00:15]} Bf6 {[%emt 0:00:37]} 12. b4 {[%emt 0:03:32]} c5 {[%emt 0:01:49]} 13. Bb2 {[%emt 0:07:33]} Nc6 {[%emt 0:04:50]} 14. bxc5 {[%emt 0:02:04]} bxc5 {[%emt 0:00:09]} 15. Qd2 {[%emt 0:02:36]} Rb8 {[%emt 0:06:59]} 16. Bc3 {[%emt 0:05:19]} d6 {[%emt 0:13:42]} 17. Rfd1 {[%emt 0:05:36]} Qe7 {[%emt 0:10:31]} 18. Ne1 {[%emt 0:03:15]} cxd4 {[%emt 0:03:18]} 19. exd4 {[%emt 0:00:12]} Bg5 {[%emt 0:03:10]} 20. f4 {[%emt 0:01:01]} Bh6 {[%emt 0:05:35]} 21. Nf3 {[%emt 0:10:47]} e5 {[%emt 0:10:53]} 22. dxe5 {[%emt 0:01:13]} dxe5 {[%emt 0:00:12]} 23. Nxe5 {[%emt 0:07:17]} Qc5+ {[%emt 0:00:44]} 24. Kf1 {[%emt 0:04:47]} Nxe5 {[%emt 0:06:32]} 25. Bxe5 {[%emt 0:00:12]} Qxe5 {[%emt 0:00:08]} 26. fxe5 {[%emt 0:00:21]} Bxd2 {[%emt 0:00:03]} 27. Rxd2 {[%emt 0:00:15]} Rbe8 {[%emt 0:00:09]} 28. Kf2 {[%emt 0:08:57]} Rxe5 {[%emt 0:00:16]} 29. Rc1 {[%emt 0:02:36]} Ra5 {[%emt 0:02:06]} 30. Rc3 {[%emt 0:04:00]} Rb8 {[%emt 0:02:24]} 31. Rb3 {[%emt 0:00:56]} Rb6 {[%emt 0:00:29]} 32. Rxb6 {[%emt 0:01:37]} axb6 {[%emt 0:00:05]} 33. Rb2 {[%emt 0:00:35]} Ra3 {[%emt 0:01:59]} 34. g3 {[%emt 0:01:44]} Kf8 {[%emt 0:00:30]} 35. Rxb6 {[%emt 0:02:19]} Rxa2 {[%emt 0:00:10]} 36. Ke3 {[%emt 0:00:16]} g5 {[%emt 0:02:17]} 37. Rd6 {[%emt 0:06:49]} Kg7 {[%emt 0:02:22]} 38. Rb6 {[%emt 0:04:04]} Kf8 {[%emt 0:00:46]} 39. h4 {[%emt 0:02:30]} Ra3+ {[%emt 0:00:17]} 40. Kd4 {[%emt 0:00:00]} Rxg3 {[%emt 0:00:00]} 41. hxg5 {[%emt 0:01:01]} Rxg5 {[%emt 0:00:39]} 42. Ke5 {[%emt 0:01:05]} Rg6 {[%emt 0:05:50]} 43. Rxg6 {[%emt 0:03:19]} hxg6 {[%emt 0:00:05]} 44. Kf6 {[%emt 0:00:04]} f4 {[%emt 0:00:22]} 45. Kg5 {[%emt 0:00:05]} f3 {[%emt 0:00:16]} 46. Bxf3 {[%emt 0:00:06]} Bxf3 {[%emt 0:00:07]} 1/2-1/2

[Event "WSTCC-50 2020"]
[Site "Prague"]
[Date "2020.03.09"]
[Round "4.27"]
[White "Yakimenko, Alexander A."]
[Black "Zimmermann, Rolf"]
[Result "1-0"]
[ECO "B01"]
[WhiteElo "2149"]
[BlackElo "2090"]
[Annotator "ChessBase"]
[PlyCount "41"]
[EventDate "2020.03.06"]
[EventType "team-tourn"]
[EventCountry "CZE"]
[SourceTitle "playchess.com"]
[Source "ChessBase"]
[SourceQuality "1"]
[TimeControl "40/5400+30:1800+30"]

1. e4 {[%emt 0:00:00]} d5 {[%emt 0:00:00]} 2. exd5 {[%emt 0:00:00]} Nf6 {[%emt 0:00:27]} 3. Bb5+ {[%emt 0:02:24]} Bd7 {[%emt 0:03:04]} 4. Bc4 {[%emt 0:00:28]} Bg4 {[%emt 0:06:44]} 5. f3 {[%emt 0:01:37]} Bh5 {[%emt 0:01:23]} 6. Nc3 {[%emt 0:00:25]} c6 {[%emt 0:02:09]} 7. dxc6 {[%emt 0:12:03]} Nxc6 {[%emt 0:00:22]} 8. Nge2 {[%emt 0:01:18]} e5 {[%emt 0:00:29]} 9. O-O {[%emt 0:03:50]} Bc5+ {[%emt 0:01:01]} 10. Kh1 {[%emt 0:00:10]} a6 {[%emt 0:01:38]} 11. d3 {[%emt 0:02:26]} Na5 {[%emt 0:07:18]} 12. Bg5 {[%emt 0:06:57]} Nxc4 {[%emt 0:01:56]} 13. dxc4 {[%emt 0:00:23]} Qxd1 {[%emt 0:05:02]} 14. Raxd1 {[%emt 0:00:49]} Be7 {[%emt 0:12:38]} 15. Ng3 {[%emt 0:06:56]} Bg6 {[%emt 0:00:34]} 16. Rfe1 {[%emt 0:02:00]} h6 {[%emt 0:11:36]} 17. Bxf6 {[%emt 0:02:32]} Bxf6 {[%emt 0:00:14]} 18. Nd5 {[%emt 0:01:40]} O-O-O {[%emt 0:04:12]} 19. Ne4 {[%emt 0:02:39]} Rhe8 {[%emt 0:08:42]} 20. Ndxf6 {[%emt 0:03:55]} gxf6 {[%emt 0:01:31]} 21. Nd6+ {[%emt 0:00:13]} 1-0

[Event "WSTCC-50 2020"]
[Site "Prague"]
[Date "2020.03.09"]
[Round "4.28"]
[White "Hoehn, Michael"]
[Black "Chudinovskikh, Alexander M"]
[Result "0-1"]
[ECO "B06"]
[WhiteElo "2036"]
[BlackElo "2139"]
[Annotator "NA"]
[PlyCount "46"]
[EventDate "2020.03.06"]
[EventType "team-tourn"]
[EventCountry "CZE"]
[SourceTitle "playchess.com"]
[Source "ChessBase"]
[SourceQuality "1"]
[TimeControl "40/5400+30:1800+30"]

1. e4 {[%emt 0:00:00]} g6 {[%emt 0:00:00]} 2. Bc4 {[%emt 0:00:45]} Bg7 {[%emt 0:00:19]} 3. Nf3 {[%emt 0:00:16]} c6 {[%emt 0:00:34]} 4. O-O {[%emt 0:00:45]} d5 {[%emt 0:00:17]} 5. exd5 {[%emt 0:00:05]} cxd5 {[%emt 0:00:04]} 6. Bb3 {[%emt 0:01:00] B06: Modern Defence.} Nc6 {[%emt 0:01:21]} 7. h3 {[%emt 0:06:21]} Nf6 {[%emt 0:01:28]} 8. d4 {[%emt 0:02:43]} O-O {[%emt 0:00:24]} 9. Bf4 {[%emt 0:01:14] [#]} Bf5 $146 {[%emt 0:00:35]} ({Predecessor:} 9... Na5 10. Qe2 Nxb3 11. axb3 Re8 12. c4 b6 13. Nc3 a6 14. Rfc1 Bb7 15. c5 bxc5 16. dxc5 {0-1 (42) Papp,C (2160)-Barczay,L (2380) Szekszard 1996}) 10. Ne5 {[%emt 0:04:36]} Rc8 {[%emt 0:03:29]} 11. c3 {[%emt 0:08:33]} Na5 {[%emt 0:00:17]} 12. Bc2 {[%emt 0:01:49]} Bxc2 {[%emt 0:00:17]} 13. Qxc2 {[%emt 0:00:02]} b5 {[%emt 0:00:17]} 14. Qe2 {[%emt 0:02:02]} Nc4 {[%emt 0:01:16]} 15. b3 {[%emt 0:08:48]} Nd6 {[%emt 0:00:15]} 16. a4 {[%emt 0:02:26]} b4 {[%emt 0:00:28]} 17. cxb4 {[%emt 0:01:50]} Qb6 {[%emt 0:00:06]} 18. Nf3 {[%emt 0:06:38]} Nf5 {[%emt 0:05:01]} 19. b5 {[%emt 0:05:30]} Ne4 $15 {[%emt 0:05:57]} 20. Be5 {[%emt 0:15:41]} Bxe5 {[%emt 0:02:16]} 21. a5 {[%emt 0:02:08]} Nxd4 {[%emt 0:00:55]} 22. Nxd4 {[%emt 0:05:49]} Qxd4 {[%emt 0:03:27]} 23. Ra4 {[%emt 0:00:32]} Qc5 {[%emt 0:07:00]} 0-1

[Event "WSTCC-50 2020"]
[Site "Prague"]
[Date "2020.03.09"]
[Round "4.30"]
[White "Cerny, Martin"]
[Black "Pastircak, Milan"]
[Result "1/2-1/2"]
[ECO "D91"]
[WhiteElo "2123"]
[BlackElo "2277"]
[Annotator "ChessBase"]
[PlyCount "47"]
[EventDate "2020.03.06"]
[EventType "team-tourn"]
[EventCountry "CZE"]
[SourceTitle "playchess.com"]
[Source "ChessBase"]
[SourceQuality "1"]
[TimeControl "40/5400+30:1800+30"]

1. d4 Nf6 2. c4 g6 3. Nc3 d5 4. Nf3 Bg7 5. Bg5 Ne4 6. Bf4 Nxc3 7. bxc3 O-O 8. e3 c5 9. cxd5 cxd4 10. cxd4 Qxd5 11. Be2 Nc6 12. O-O Bf5 13. Qa4 Qa5 14. Qxa5 Nxa5 15. Bc7 Nc6 16. Rfc1 Rac8 17. Bf4 Rfd8 18. h3 h6 19. g4 Be6 20. Kf1 Kf8 21. a3 Bd5 22. Rab1 Be4 23. Ra1 Bd5 24. Rab1 1/2-1/2

[Event "WSTCC-50 2020"]
[Site "Prague"]
[Date "2020.03.09"]
[Round "4.34"]
[White "Dolgitser, Konstantin"]
[Black "Kempter, Ronald"]
[Result "1/2-1/2"]
[ECO "A48"]
[WhiteElo "2232"]
[BlackElo "2238"]
[Annotator "ChessBase"]
[PlyCount "107"]
[EventDate "2020.03.06"]
[EventType "team-tourn"]
[EventCountry "CZE"]
[SourceTitle "playchess.com"]
[Source "ChessBase"]
[SourceQuality "1"]
[TimeControl "40/5400+30:1800+30"]

1. Nf3 {[%emt 0:00:00]} Nf6 {[%emt 0:00:00]} 2. d4 {[%emt 0:00:00]} g6 {[%emt 0:00:29]} 3. c4 {[%emt 0:00:03]} Bg7 {[%emt 0:00:52]} 4. g3 {[%emt 0:00:25]} O-O {[%emt 0:00:11]} 5. Bg2 {[%emt 0:00:08]} d6 {[%emt 0:00:12]} 6. O-O {[%emt 0:00:37]} Nc6 {[%emt 0:00:19]} 7. d5 {[%emt 0:00:10]} Na5 {[%emt 0:00:05]} 8. Nfd2 {[%emt 0:01:53]} c5 {[%emt 0:00:06]} 9. Qc2 {[%emt 0:00:27]} a6 {[%emt 0:00:12]} 10. Nc3 {[%emt 0:00:17]} Rb8 {[%emt 0:00:07]} 11. b3 {[%emt 0:00:27]} b5 {[%emt 0:00:10]} 12. Bb2 {[%emt 0:00:11]} e5 {[%emt 0:00:04]} 13. Rab1 {[%emt 0:21:20]} h5 {[%emt 0:01:15]} 14. h3 {[%emt 0:00:48]} Bh6 {[%emt 0:10:25]} 15. e3 {[%emt 0:00:38]} Nh7 {[%emt 0:19:19]} 16. f4 {[%emt 0:03:08]} f5 {[%emt 0:12:06]} 17. Nd1 {[%emt 0:02:00]} e4 {[%emt 0:03:31]} 18. Nf2 {[%emt 0:03:53]} Nf6 {[%emt 0:04:12]} 19. Rfe1 {[%emt 0:18:14]} Bg7 {[%emt 0:09:50]} 20. Bf1 {[%emt 0:00:29]} Qe7 {[%emt 0:05:23]} 21. Be2 {[%emt 0:01:22]} Bd7 {[%emt 0:06:54]} 22. Kg2 {[%emt 0:01:51]} Rbe8 {[%emt 0:13:05]} 23. Rh1 {[%emt 0:01:18]} Kf7 {[%emt 0:03:15]} 24. Rbg1 {[%emt 0:00:52]} Rh8 {[%emt 0:01:25]} 25. Kf1 {[%emt 0:00:27]} Nb7 {[%emt 0:01:28]} 26. Rg2 {[%emt 0:04:34]} Reg8 {[%emt 0:02:02]} 27. Rhg1 {[%emt 0:00:12]} Ne8 {[%emt 0:01:34]} 28. g4 {[%emt 0:00:37]} hxg4 {[%emt 0:00:54]} 29. hxg4 {[%emt 0:00:05]} Bxb2 {[%emt 0:00:24]} 30. Qxb2 {[%emt 0:00:02]} Qf6 {[%emt 0:00:34]} 31. Qc1 {[%emt 0:01:34]} b4 {[%emt 0:01:26]} 32. Rg3 {[%emt 0:06:14]} Qc3 {[%emt 0:00:59]} 33. Kg2 {[%emt 0:07:52]} Qxc1 {[%emt 0:00:05]} 34. Rxc1 {[%emt 0:00:01]} Rh4 {[%emt 0:01:10]} 35. gxf5 {[%emt 0:02:10]} gxf5 {[%emt 0:00:08]} 36. Rxg8 {[%emt 0:01:23]} Kxg8 {[%emt 0:00:05]} 37. Kg3 {[%emt 0:01:48]} Rh6 {[%emt 0:00:29]} 38. Nh3 {[%emt 0:00:51]} Nd8 {[%emt 0:01:18]} 39. Rg1 {[%emt 0:00:52]} Nf7 {[%emt 0:01:05]} 40. Kf2+ {[%emt 0:00:00]} Kf8 {[%emt 0:00:00]} 41. Rg3 {[%emt 0:03:53]} Nf6 {[%emt 0:06:25]} 42. Kg2 {[%emt 0:00:51]} Rh8 {[%emt 0:05:57]} 43. Nf1 {[%emt 0:01:23]} Nh6 {[%emt 0:01:43]} 44. Rg5 {[%emt 0:05:23]} Nf7 {[%emt 0:03:08]} 45. Rg6 {[%emt 0:00:48]} Rg8 {[%emt 0:00:04]} 46. Rxg8+ {[%emt 0:00:32]} Kxg8 {[%emt 0:00:08]} 47. Ng3 {[%emt 0:00:22]} Nh6 {[%emt 0:05:46]} 48. Nf2 {[%emt 0:00:08]} Be8 {[%emt 0:03:51]} 49. Kh3 {[%emt 0:00:34]} Kg7 {[%emt 0:03:32]} 50. Kh4 {[%emt 0:00:10]} a5 {[%emt 0:00:19]} 51. Bf1 {[%emt 0:02:34]} a4 {[%emt 0:02:38]} 52. Be2 {[%emt 0:02:18]} a3 {[%emt 0:01:58]} 53. Nh5+ {[%emt 0:01:08]} Kg6 {[%emt 0:01:27]} 54. Nxf6 1/2-1/2

[Event "WSTCC-50 2020"]
[Site "Prague"]
[Date "2020.03.09"]
[Round "4.35"]
[White "Scheckenbach, Franz"]
[Black "Koganov, Mikhail"]
[Result "0-1"]
[ECO "C41"]
[WhiteElo "2101"]
[BlackElo "2085"]
[Annotator "ChessBase"]
[PlyCount "53"]
[EventDate "2020.03.06"]
[EventType "team-tourn"]
[EventCountry "CZE"]
[SourceTitle "playchess.com"]
[Source "ChessBase"]
[SourceQuality "1"]
[TimeControl "40/5400+30:1800+30"]

1. e4 {[%emt 0:00:00]} d6 {[%emt 0:00:00]} 2. d4 {[%emt 0:00:00]} Nf6 {[%emt 0:00:00]} 3. Nc3 {[%emt 0:00:02]} e5 {[%emt 0:00:00]} 4. Nf3 {[%emt 0:00:42]} Nbd7 {[%emt 0:00:00]} 5. Bc4 {[%emt 0:00:32]} Be7 {[%emt 0:00:02]} 6. a4 {[%emt 0:00:20]} a5 {[%emt 0:00:11]} 7. O-O {[%emt 0:00:43]} c6 {[%emt 0:01:01]} 8. h3 {[%emt 0:07:59]} Qc7 {[%emt 0:01:15]} 9. Bg5 {[%emt 0:04:16]} Nf8 {[%emt 0:08:15]} 10. Qd2 {[%emt 0:07:20]} h6 {[%emt 0:01:14]} 11. Be3 {[%emt 0:04:18]} g5 {[%emt 0:00:51]} 12. Nh2 {[%emt 0:06:40]} Ng6 {[%emt 0:01:16]} 13. Be2 {[%emt 0:04:02]} Nf4 {[%emt 0:02:55]} 14. Ng4 {[%emt 0:04:13]} h5 {[%emt 0:02:24]} 15. Nxf6+ {[%emt 0:02:31]} Bxf6 {[%emt 0:00:10]} 16. Rad1 {[%emt 0:10:40]} Qe7 {[%emt 0:11:31]} 17. dxe5 {[%emt 0:06:39]} Bxe5 {[%emt 0:09:37]} 18. Rfe1 {[%emt 0:09:30]} Rg8 {[%emt 0:13:36]} 19. Bf1 {[%emt 0:01:46]} Be6 {[%emt 0:04:12]} 20. Bd4 {[%emt 0:01:34]} g4 {[%emt 0:00:41]} 21. Bxe5 {[%emt 0:03:17]} dxe5 {[%emt 0:00:26]} 22. h4 {[%emt 0:13:56]} g3 {[%emt 0:01:27]} 23. Ne2 {[%emt 0:05:33]} gxf2+ {[%emt 0:00:54]} 24. Kxf2 {[%emt 0:00:10]} Qxh4+ {[%emt 0:00:33]} 25. g3 {[%emt 0:02:42]} Qh2+ {[%emt 0:01:26]} 26. Kf3 {[%emt 0:00:20]} Nxe2 {[%emt 0:00:26]} 27. Ra1 0-1

[Event "WSTCC-50 2020"]
[Site "Prague"]
[Date "2020.03.09"]
[Round "4.36"]
[White "Leverett, Bruce"]
[Black "Arndt, Olaf"]
[Result "1-0"]
[ECO "A81"]
[WhiteElo "2264"]
[BlackElo "1887"]
[Annotator "ChessBase"]
[PlyCount "57"]
[EventDate "2020.03.06"]
[EventType "team-tourn"]
[EventCountry "CZE"]
[SourceTitle "playchess.com"]
[Source "ChessBase"]
[SourceQuality "1"]
[TimeControl "40/5400+30:1800+30"]

1. d4 {[%emt 0:00:13]} f5 {[%emt 0:00:00]} 2. g3 {[%emt 0:00:13]} Nf6 {[%emt 0:00:02]} 3. Bg2 {[%emt 0:00:07]} e6 {[%emt 0:00:37]} 4. Nf3 {[%emt 0:00:16]} d5 {[%emt 0:00:13]} 5. O-O {[%emt 0:00:16]} Bd6 {[%emt 0:00:15]} 6. c4 {[%emt 0:03:20]} c6 {[%emt 0:03:07]} 7. b3 {[%emt 0:02:24]} O-O {[%emt 0:00:28]} 8. Bb2 {[%emt 0:01:09]} Bd7 {[%emt 0:08:25]} 9. Nbd2 {[%emt 0:05:28]} Be8 {[%emt 0:02:01]} 10. Ne5 {[%emt 0:02:54]} Bh5 {[%emt 0:01:50]} 11. Ndf3 {[%emt 0:01:56]} Nbd7 {[%emt 0:02:17]} 12. Nd3 {[%emt 0:02:17]} Qe7 {[%emt 0:10:07]} 13. a4 {[%emt 0:09:17]} a5 {[%emt 0:03:56]} 14. Qc1 {[%emt 0:02:17]} Ne4 {[%emt 0:02:49]} 15. Ba3 {[%emt 0:02:34]} Bxa3 {[%emt 0:01:15]} 16. Qxa3 {[%emt 0:01:02]} Qxa3 {[%emt 0:00:42]} 17. Rxa3 {[%emt 0:00:06]} Bxf3 {[%emt 0:01:34]} 18. exf3 {[%emt 0:00:21]} Nd2 {[%emt 0:07:16]} 19. Rc1 {[%emt 0:04:04]} dxc4 {[%emt 0:01:49]} 20. bxc4 {[%emt 0:00:11]} Nb6 {[%emt 0:00:53]} 21. Ne5 {[%emt 0:00:25]} Rfd8 {[%emt 0:03:00]} 22. Rd3 {[%emt 0:00:11]} Rxd4 {[%emt 0:01:02]} 23. Rxd4 {[%emt 0:00:11]} Nb3 {[%emt 0:00:04]} 24. Rb1 {[%emt 0:03:14]} Nxd4 {[%emt 0:01:38]} 25. Rxb6 {[%emt 0:00:07]} Ne2+ {[%emt 0:01:43]} 26. Kf1 {[%emt 0:00:13]} Nc3 {[%emt 0:00:03]} 27. Rxb7 {[%emt 0:00:58]} Nxa4 {[%emt 0:00:08]} 28. Nxc6 {[%emt 0:00:53]} Nc5 {[%emt 0:01:11]} 29. Rb5 {[%emt 0:01:51]} 1-0

[Event "WSTCC-50 2020"]
[Site "Prague"]
[Date "2020.03.09"]
[Round "4.38"]
[White "Jhunjhnuwala, Ramesh"]
[Black "Farrell, Neil"]
[Result "1/2-1/2"]
[ECO "C05"]
[WhiteElo "2143"]
[BlackElo "2183"]
[Annotator "ChessBase"]
[PlyCount "88"]
[EventDate "2020.03.06"]
[EventType "team-tourn"]
[EventCountry "CZE"]
[SourceTitle "playchess.com"]
[Source "ChessBase"]
[SourceQuality "1"]
[TimeControl "40/5400+30:1800+30"]

1. e4 {[%emt 0:00:00]} e6 {[%emt 0:00:00]} 2. d4 {[%emt 0:00:00]} d5 {[%emt 0:00:00]} 3. Nd2 {[%emt 0:00:00]} Nf6 {[%emt 0:00:00]} 4. e5 {[%emt 0:00:09]} Nfd7 {[%emt 0:00:08]} 5. Ne2 {[%emt 0:00:40]} c5 {[%emt 0:02:05]} 6. c3 {[%emt 0:00:15]} Nc6 {[%emt 0:01:05]} 7. f4 {[%emt 0:01:10]} Qb6 {[%emt 0:01:47]} 8. Nf3 {[%emt 0:00:57]} f6 {[%emt 0:02:18]} 9. g3 {[%emt 0:05:02]} cxd4 {[%emt 0:09:06]} 10. cxd4 {[%emt 0:00:38]} Be7 {[%emt 0:04:02]} 11. Bh3 {[%emt 0:02:16]} O-O {[%emt 0:00:36]} 12. Bxe6+ {[%emt 0:13:00]} Kh8 {[%emt 0:00:06]} 13. exf6 {[%emt 0:09:00]} Nxf6 {[%emt 0:01:24]} 14. Bxc8 {[%emt 0:02:59]} Raxc8 {[%emt 0:00:15]} 15. O-O {[%emt 0:00:49]} Nb4 {[%emt 0:23:03]} 16. Nc3 {[%emt 0:13:09]} Bd6 {[%emt 0:21:25]} 17. a3 {[%emt 0:27:31]} Nc6 {[%emt 0:00:52]} 18. Qd3 {[%emt 0:00:40]} Rce8 {[%emt 0:08:37]} 19. Kg2 {[%emt 0:00:44]} Qb3 {[%emt 0:03:26]} 20. Qb5 {[%emt 0:02:59]} Qxb5 {[%emt 0:05:47]} 21. Nxb5 {[%emt 0:00:04]} Bb8 {[%emt 0:00:08]} 22. Nc3 {[%emt 0:00:44]} a6 {[%emt 0:00:31]} 23. h3 {[%emt 0:02:20]} Ba7 {[%emt 0:00:23]} 24. Rd1 {[%emt 0:00:09]} Re7 {[%emt 0:03:12]} 25. f5 {[%emt 0:06:41]} Rd7 {[%emt 0:06:54]} 26. Ne5 {[%emt 0:03:52]} Re7 {[%emt 0:00:12]} 27. Nxc6 {[%emt 0:00:19]} bxc6 {[%emt 0:00:08]} 28. Bg5 {[%emt 0:00:05]} Rfe8 {[%emt 0:00:47]} 29. Bxf6 {[%emt 0:02:18]} gxf6 {[%emt 0:00:03]} 30. Rd2 {[%emt 0:00:21]} Kg7 {[%emt 0:01:05]} 31. Rad1 {[%emt 0:00:31]} Kh6 {[%emt 0:00:32]} 32. Kf2 {[%emt 0:01:41]} Kg5 {[%emt 0:00:27]} 33. g4 {[%emt 0:00:52]} h5 {[%emt 0:00:54]} 34. gxh5 {[%emt 0:00:43]} Kxh5 35. Re2 {[%emt 0:00:45]} Kg5 {[%emt 0:02:08]} 36. Rxe7 {[%emt 0:00:38]} Rxe7 {[%emt 0:00:05]} 37. Ne2 {[%emt 0:00:36]} Kxf5 {[%emt 0:00:14]} 38. Kf3 {[%emt 0:00:16]} Rh7 {[%emt 0:00:29]} 39. Rc1 {[%emt 0:01:04]} Rxh3+ {[%emt 0:01:41]} 40. Kf2 {[%emt 0:00:00]} Ke4 {[%emt 0:00:00]} 41. Rxc6 {[%emt 0:03:00]} Rh2+ {[%emt 0:08:14]} 42. Ke1 {[%emt 0:12:16]} Kd3 {[%emt 0:09:57]} 43. Rc3+ {[%emt 0:00:18]} Ke4 {[%emt 0:00:08]} 44. Rc6 {[%emt 0:00:43]} Kd3 {[%emt 0:00:09]} 1/2-1/2

[Event "WSTCC-50 2020"]
[Site "Prague"]
[Date "2020.03.09"]
[Round "4.39"]
[White "Grant, Jonathan I M"]
[Black "Jhunjhnuwala, Naresh"]
[Result "1-0"]
[ECO "A25"]
[WhiteElo "2166"]
[BlackElo "2085"]
[Annotator "ChessBase"]
[PlyCount "73"]
[EventDate "2020.03.06"]
[EventType "team-tourn"]
[EventCountry "CZE"]
[SourceTitle "playchess.com"]
[Source "ChessBase"]
[SourceQuality "1"]
[TimeControl "40/5400+30:1800+30"]

1. c4 {[%emt 0:00:00]} e5 {[%emt 0:00:00]} 2. Nc3 {[%emt 0:00:00]} Nc6 {[%emt 0:00:14]} 3. g3 {[%emt 0:00:00]} g6 {[%emt 0:00:18]} 4. Bg2 {[%emt 0:00:00]} Bg7 {[%emt 0:00:06]} 5. e4 {[%emt 0:00:00]} Nge7 {[%emt 0:00:16]} 6. Nge2 {[%emt 0:00:13]} d6 {[%emt 0:00:47]} 7. d3 {[%emt 0:00:10]} O-O {[%emt 0:00:23]} 8. O-O {[%emt 0:00:33]} Nd4 {[%emt 0:07:41]} 9. Nxd4 {[%emt 0:01:33]} exd4 {[%emt 0:00:07]} 10. Ne2 {[%emt 0:01:06]} c5 {[%emt 0:01:41]} 11. Rb1 {[%emt 0:02:33]} Nc6 {[%emt 0:00:59]} 12. Bd2 {[%emt 0:01:07]} a5 {[%emt 0:02:48]} 13. Nf4 {[%emt 0:03:00]} Ne5 {[%emt 0:01:55]} 14. Qc2 {[%emt 0:02:48]} Rb8 {[%emt 0:14:47]} 15. a3 {[%emt 0:03:18]} b5 {[%emt 0:01:24]} 16. cxb5 {[%emt 0:07:00]} Rxb5 {[%emt 0:00:09]} 17. b4 {[%emt 0:01:37]} axb4 {[%emt 0:04:27]} 18. axb4 {[%emt 0:00:16]} Bd7 {[%emt 0:07:35]} 19. bxc5 {[%emt 0:07:52]} dxc5 {[%emt 0:16:08]} 20. Nd5 {[%emt 0:07:50]} Re8 {[%emt 0:05:02]} 21. f4 {[%emt 0:08:21]} Ng4 {[%emt 0:02:24]} 22. Rxb5 {[%emt 0:04:15]} Bxb5 {[%emt 0:00:07]} 23. Rb1 {[%emt 0:00:41]} Ba6 {[%emt 0:07:03]} 24. Rb6 {[%emt 0:01:14]} Qc8 {[%emt 0:01:41]} 25. h3 {[%emt 0:11:40]} Nh6 {[%emt 0:03:59]} 26. f5 {[%emt 0:01:08]} Kh8 {[%emt 0:00:58]} 27. f6 {[%emt 0:05:22]} Bf8 {[%emt 0:00:13]} 28. Ne7 {[%emt 0:03:09]} Bxe7 {[%emt 0:01:17]} 29. fxe7 {[%emt 0:04:46]} Ng8 {[%emt 0:00:10]} 30. Bf4 {[%emt 0:01:50]} Rxe7 {[%emt 0:02:28]} 31. Bd6 {[%emt 0:01:36]} Re6 {[%emt 0:04:52]} 32. Qa4 {[%emt 0:01:29]} Bxd3 {[%emt 0:01:20]} 33. Qa7 {[%emt 0:02:17]} Kg7 {[%emt 0:03:13]} 34. Rb8 {[%emt 0:01:14]} Qa6 {[%emt 0:02:14]} 35. Rxg8+ {[%emt 0:00:18]} Kxg8 {[%emt 0:00:08]} 36. Qb8+ {[%emt 0:00:03]} Kg7 {[%emt 0:03:16]} 37. Bf8+ {[%emt 0:00:05]} 1-0